Workbook

Sheet CashFlow
A2: Destabilized Legal 7 unit buillding. 2bdr x 7 units
A4: Monthly Operating Income | B4: Scenario A | C4: Scenario B | D4: Scenario C
A5: Number of Units | B5: 7 | C5: 7 | D5: 7
A6: Monthly Rent in Unit 1 | B6: 2500 | C6: 2600 | E6: Vacant - Projected
A7: Monthly Rent in Unit 2 | B7: 2589 | C7: 2600
A8: Monthly Rent in Unit 3 | B8: 2500 | C8: 2600 | E8: Vacant - Projected
A9: Monthly Rent in Unit 4 | B9: 2600 | C9: 2600
A10: Monthly Rent in Unit 5 | B10: 2441 | C10: 2600
A11: Monthly Rent in Unit 6 | B11: 2441 | C11: 2600
A12: Monthly Rent in Unit 7 | B12: 2441 | C12: 2600
A13: % Vacancy and Credit Losses | B13: 0.03 | C13: 0.03 | D13: 0.03
A14: Total Vacancy Loss | B14: =B13*B15 -> 525.36 | C14: 546 | D14: 0
A15: Total Rental Income | B15: =SUM(B6:B12) -> 17512 | C15: 18200
A16: Other Monthly Income (laundry, vending, parking, etc.) | B16: 0
A17: Gross Monthly Operating Income | B17: =B15-B14+B16 -> 16986.64 | C17: 17654 | D17: 0
A19: Monthly Operating Expenses
A20: Property Management Fee Percentage | B20: 0.05 | C20: 0.05 | D20: 0
A21: Property Management Total | B21: 875.6 | C21: =C15*C20 -> 910 | D21: 0 | E21: ← Don't forget these are MONTHLY numbers.
A22: Repairs and Maintenance | B22: 350 | C22: 350
A23: Real Estate Taxes | B23: 1403 | C23: 1173
A24: Rental Property Insurance | B24: 729 | C24: 729
A25: Homeowners/Property Association Fees
A26: Heat (gas) | D26: 0
A27: Utilities
A28: - Water and Sewer | B28: 300 | C28: 300
A29: - Gas and Electricity | B29: 100 | C29: 100
A30: - Garbage
A31: - Cable, Phone, Internet
A32: Water & Water Pollution | B32: 0 | C32: 0 | D32: 0
A33: Accounting and Legal
A34: Advertising
A35: Monthly Operating Expenses | B35: =SUM(B20:B34) -> 3757.65 | C35: 3562.05 | D35: =SUM(D21:D34) -> 0
A37: Net Operating Income (NOI)
A38: Total Annual Operating Income | B38: =B17*12 -> 203839.68 | C38: 211848 | D38: 0
A39: Total Annual Operating Expense | B39: =B35*12 -> 45091.8 | C39: 42744.6 | D39: 0
A40: Annual Net Operating Income | B40: =B38-B39 -> 158747.88 | C40: 169103.4 | D40: 0
A42: Capitalization Rate and Valuation
A43: Desired Capitalization Rate
A44: Property Valuation (Offer Price)
A45: Property Cost | B45: 2350000 | C45: 2350000
A46: Closing Costs
A47: LLC Incorporation Fee
A48: Carrying Costs
A49: Appraisal Fee | B49: 0
A50: Acquisition & Project Manegemtn Fee | B50: 0 | C50: 0
A51: Rehab Costs
A52: Actual Purchase Price | B52: =SUM(B45:B51) -> 2350000 | C52: 2350000 | D52: 0
A53: Actual Capitalization Rate | B53: =IF(B52=0," - ",B40/B52) -> 0.06755228936 | C53: 0.07195889362 | D53: -
A55: Loan Information
A56: Down Payment Percentage
A57: Down Payment
A58: Loan Amount
A59: Points
A60: Annual Interest Rate
A61: Initial Investment
A62: Monthly Mortgage Payment (PI) | B62: =B60*B58/12 -> 0 | C62: 0 | D62: 0
A63: Annual Interest | B63: =B62*12 -> 0 | C63: 0 | D63: 0
A64: Total Annual Debt Service | B64: =B62*12 -> 0 | C64: 0 | D64: 0
A66: Cash Flow and ROI
A67: Total Monthly Cash Flow (before taxes)
A68: Total Annual Cash Flow (before taxes)
A69: Cash on Cash Return (ROI)
A71: Note: This spreadsheet should only be used for informational and educational purposes. Please verify
A72: calculations and seek professional assistance before making financial decisions.
A77: Cash On Cash Return = Total Annual Cash Flow before taxes Divided by Initial investment
A78: Annual Cash Flow is NOI minus Debt Service
A79: Debt Service equals monthly mortgage times 12
A81: Healthy Cash on Cash is 8-12%

Sheet Sheet3
A1: Destabilized Legal 7 unit buillding. 2bdr x 7 units
A3: Monthly Operating Income | B3: Scenario A | C3: Scenario B | D3: Scenario C
A4: Number of Units | B4: 7 | C4: 7 | D4: 7
A5: Monthly Rent in Unit 1 | B5: 2500 | C5: 2600
A6: Monthly Rent in Unit 2 | B6: 2589 | C6: 2600
A7: Monthly Rent in Unit 3 | B7: 2500 | C7: 2600
A8: Monthly Rent in Unit 4 | B8: 2600 | C8: 2600
A9: Monthly Rent in Unit 5 | B9: 2441 | C9: 2600
A10: Monthly Rent in Unit 6 | B10: 2441 | C10: 2600
A11: Monthly Rent in Unit 7 | B11: 2441 | C11: 2600
A12: % Vacancy and Credit Losses | B12: 0.03 | C12: 0.03 | D12: 0.03
A13: Total Vacancy Loss | B13: =B12*B14 -> 525.36 | C13: 546 | D13: 0
A14: Total Rental Income | B14: =SUM(B5:B11) -> 17512 | C14: 18200
A15: Other Monthly Income (laundry, vending, parking, etc.) | B15: 0
A16: Gross Monthly Operating Income | B16: =B14-B13+B15 -> 16986.64 | C16: 17654 | D16: 0
A18: Monthly Operating Expenses
A19: Property Management Fee Percentage | B19: 0.03 | C19: 0.03 | D19: 0
A20: Property Management Total | B20: 483 | C20: =C14*C19 -> 546 | D20: 0
A21: Repairs and Maintenance | B21: 250 | C21: 250
A22: Real Estate Taxes | B22: 1170 | C22: 1170
A23: Rental Property Insurance | B23: 583 | C23: 583
A24: Homeowners/Property Association Fees
A25: Heat (gas) | D25: 0
A26: Utilities
A27: - Water and Sewer | B27: 300 | C27: 300
A28: - Gas and Electricity | B28: 100 | C28: 100
A29: - Garbage
A30: - Cable, Phone, Internet
A31: Water & Water Pollution | B31: 0 | C31: 0 | D31: 0
A32: Accounting and Legal
A33: Advertising
A34: Monthly Operating Expenses | B34: =SUM(B19:B33) -> 2886.03 | C34: 2949.03 | D34: =SUM(D20:D33) -> 0
A36: Net Operating Income (NOI)
A37: Total Annual Operating Income | B37: =B16*12 -> 203839.68 | C37: 211848 | D37: 0
A38: Total Annual Operating Expense | B38: =B34*12 -> 34632.36 | C38: 35388.36 | D38: 0
A39: Annual Net Operating Income | B39: =B37-B38 -> 169207.32 | C39: 176459.64 | D39: 0
A41: Capitalization Rate and Valuation
A42: Desired Capitalization Rate
A43: Property Valuation (Offer Price)
A44: Property Cost | B44: 2500000 | C44: 2500000
A45: Closing Costs
A46: LLC Incorporation Fee
A47: Carrying Costs
A48: Appraisal Fee | B48: 0
A49: Acquisition & Project Manegemtn Fee | B49: 0 | C49: 0
A50: Rehab Costs
A51: Actual Purchase Price | B51: =SUM(B44:B50) -> 2500000 | C51: 2500000 | D51: 0
A52: Actual Capitalization Rate | B52: =IF(B51=0," - ",B39/B51) -> 0.067682928 | C52: 0.070583856 | D52: -

Sheet Sheet1
A1: PERSONAL USE ONLY* | E1: ***DO NOT TYPE ANYTHING IN A PINK CELL***** | H1: BANK USE ONLY* | L1: ****DO NOT TYPE ANYTHING IN A PINK CELL****
A3: Initial investment | H3: Initial investment
A5: Monthly Operating Income | H5: Monthly Operating Income
A6: Monthly Rent in Unit 1 | H6: Monthly Rent in Unit 1
A7: Monthly Rent in Unit 2 | H7: Monthly Rent in Unit 2
A8: Monthly Rent in Unit 3 | H8: Monthly Rent in Unit 3
A9: Monthly Rent in Unit 4 | H9: Monthly Rent in Unit 4
A10: Total Rental Income | D10: *Automatic Calculation
B11: % Vacancies | C11: 0.03 | H11: Total Monthly Rents | J11: =SUM(J6:J9) -> 0 | K11: *Automatic Calculation
A12: Total Vacancy Loss | C12: =C11*C10 -> 0 | D12: *Automatic Calculation
A14: Gross Monthly Operating Income | C14: =C10-C12 -> 0 | D14: *Automatic Calculation
A17: Monthly Operating Expenses | H17: Monthly Operating Expenses
A18: Property Management Total | H18: Repairs and Maintenance
A19: Repairs and Maintenance | H19: Real Estate Taxes
A20: Real Estate Taxes | H20: Property Insurance
A21: Rental Property Insurance | H21: Homeowners/ Property Association Fees
A22: Homeowners/ Property Association Fees | H22: Heat (gas)
A23: Heat (gas) | H23: Utilities
A24: Utilities | H24: Water
A25: Water | H25: Accounting and Legal | K25: 0
A26: Accounting and Legal | H26: Monthly Operating Expenses | K26: =SUM(K18:K25) -> 0 | L26: *Automatic Calculation
A27: Monthly Operating Expenses | D27: =SUM(D18:D26) -> 0 | E27: *Automatic Calculation
A31: Net Operating Income | H31: Net Operating Income
A32: Total Annual Operating Income | D32: =C14*12 -> 0 | E32: *Automatic Calculation | H32: Total Annual Operating Income | K32: =J11*12 -> 0 | L32: *Automatic Calculation
A33: Total Annual Operating Expense | D33: =D27*12 -> 0 | E33: *Automatic Calculation | H33: Total Annual Operating Expense | K33: =K26*12 -> 0 | L33: *Automatic Calculation
A34: Annual Net Operating Income | D34: =D32-D33 -> 0 | E34: *Automatic Calculation | H34: Annual Net Operating Income | K34: =K32-K33 -> 0 | L34: *Automatic Calculation
A38: Property Worth | D38: =K38 -> 0 | E38: *Automatic Calculation | H38: Property Worth | K38: =K34/0.07 -> 0 | L38: *Automatic Calculation
A40: Length of Mortgage (Years) | D40: 30 | H40: Length of Mortgage (Years) | K40: 30
A41: Annual Interest Rate | D41: 0.0375 | H41: Annual Interest Rate | K41: 0.0375
A43: Mortgage | D43: =D38*0.7 -> 0 | E43: *Automatic Calculation | H43: Mortgage | K43: =K38*0.7 -> 0 | L43: *Automatic Calculation
A44: Monthly Mortgage Payment | D44: =IF(D43=0,0,-PMT(D41/12,D40*12,D43)) -> 0 | E44: *Automatic Calculation | H44: Monthly Mortgage Payment | K44: =IF(K43=0,0,-PMT(K41/12,K40*12,K43)) -> 0 | L44: *Automatic Calculation
A45: Annual Interest | D45: =IF(D43=0,0,-CUMIPMT(D41/12,D40*12,D43,1,12,0)) -> 0 | E45: *Automatic Calculation | H45: Annual Interest | K45: =IF(K43=0,0,-CUMIPMT(K41/12,K40*12,K43,1,12,0)) -> 0 | L45: *Automatic Calculation
A46: Annual Principal | D46: =IF(D43=0,0,-CUMPRINC(D41/12,D40*12,D43,1,12,0)) -> 0 | E46: *Automatic Calculation | H46: Annual Principal | K46: =IF(K43=0,0,-CUMPRINC(K41/12,K40*12,K43,1,12,0)) -> 0 | L46: *Automatic Calculation
B48: Annual Mortgage Payment | D48: =D44*12 -> 0 | E48: *Automatic Calculation | I48: Annual Mortgage Payment | K48: =K44*12 -> 0 | L48: *Automatic Calculation
C50: Complete Net | D50: =D34-D48 -> 0 | E50: *Automatic Calculation | J50: Complete Net | K50: =K34-K48 -> 0 | L50: *Automatic Calculation
B52: Complete Net Monthly | D52: =D50/12 -> 0 | E52: *Automatic Calculation | I52: Complete Net Monthly | K52: =K50/12 -> 0 | L52: *Automatic Calculation
A56: Cash on Cash ROI | C56: =C58/C3 -> #DIV/0! | H56: Cash on Cash ROI | J56: =J58/J3 -> #DIV/0!
A58: Total annual Cash flow | C58: =D34-D48 -> 0 | H58: Total annual Cash flow | J58: =K34-K48 -> 0

Sheet Sheet2
A1: Initial investment
A3: Monthly Operating Income
A4: Monthly Rent in Unit 1
A5: Monthly Rent in Unit 2
A6: Monthly Rent in Unit 3
A7: Monthly Rent in Unit 4
A8: Total Rental Income | C8: =SUM(C4:C7) -> 0 | D8: *Automatic Calculation
B9: % Vacancies
A10: Total Vacancy Loss | C10: =C9*C8 -> 0 | D10: *Automatic Calculation
A12: Gross Monthly Operating Income | C12: =C8-C10 -> 0 | D12: *Automatic Calculation
A15: Monthly Operating Expenses
A16: Property Management Total | D16: 300
A17: Repairs and Maintenance | D17: 180
A18: Real Estate Taxes | D18: 666
A19: Rental Property Insurance | D19: 166
A20: Homeowners/ Property Association Fees
A21: Heat (Oil) | D21: 250
A22: Utilities
A23: Water | D23: 166
A24: Accounting and Legal
A25: Monthly Operating Expenses | E25: *Automatic Calculation
A29: Net Operating Income
A30: Total Annual Operating Income | D30: =C12*12 -> 0 | E30: *Automatic Calculation
A31: Total Annual Operating Expense | D31: =D25*12 -> 0 | E31: *Automatic Calculation
A32: Annual Net Operating Income | D32: =D30-D31 -> 0 | E32: *Automatic Calculation
A36: Property Worth | D36: =K36 ->  | E36: *Automatic Calculation
A38: Length of Mortgage (Years) | D38: 30
A39: Annual Interest Rate | D39: 0.05
A41: Mortgage | D41: =D36*0.7 -> 0 | E41: *Automatic Calculation
A42: Monthly Mortgage Payment | D42: =IF(D41=0,0,-PMT(D39/12,D38*12,D41)) -> 0 | E42: *Automatic Calculation
A43: Annual Interest | D43: =IF(D41=0,0,-CUMIPMT(D39/12,D38*12,D41,1,12,0)) -> 0 | E43: *Automatic Calculation
A44: Annual Principal | D44: =IF(D41=0,0,-CUMPRINC(D39/12,D38*12,D41,1,12,0)) -> 0 | E44: *Automatic Calculation
B46: Annual Mortgage Payment | D46: =D42*12 -> 0 | E46: *Automatic Calculation
C48: Complete Net | D48: =D32-D46 -> 0 | E48: *Automatic Calculation
B50: Complete Net Monthly | D50: =D48/12 -> 0 | E50: *Automatic Calculation
A54: Cash on Cash ROI | C54: =C56/C1 -> #DIV/0!
A56: Total annual Cash flow | C56: =D32-D46 -> 0

Sheet ©
B1: Rental Cash Flow Analysis
B3: By Vertex42.com
B4: https://www.vertex42.com/ExcelTemplates/rental-cash-flow-analysis.html
B6: Disclaimer: This spreadsheet should only be used for informational and educational purposes. Please verify calculations and seek professional assistance before making financial decisions.
B8: © 2015-2019 Vertex42 LLC
B10: This spreadsheet, including all worksheets and associated content is a copyrighted work under the United States and other copyright laws.
B12: Do not submit copies or modifications of this template to any website or online template gallery.
B14: Please review the following license agreement to learn how you may or may not use this template. Thank you.
B16: License Agreement
B17: https://www.vertex42.com/licensing/EULA_privateuse.html
B19: Do not delete this worksheet
